Cogmind - Beta 13 @@@ ROGUE MODE // 2024.07.22 @ 17:34:53 Player: Beef Result: Destroyed by G-47 Trooper with Particle Gun Performance ------------- Evolutions (0) 0 Regions Visited (2) 400 Robots Destroyed (18) 90 Value Destroyed (410) 410 Prototype IDs (0) 0 Alien Tech Used (0) 0 Bonus (0) 0 TOTAL SCORE: 900 Bonus ------- None Cogmind --------- Core Integrity 0/250 Matter 256/300 Energy 93/100 System Corruption 0% Temperature Cool (57) Movement Walking (120) Location -10/Mines Parts ------- > --- POWER (1) -------- (None) > --- PROPULSION (2) --- Aluminum Leg > --- UTILITY (2) ------ Terrain Scan Processor > --- WEAPON (2) ------- Small Laser Small Laser > --- INVENTORY (5) ---- Ion Engine Small Storage Unit Mining Laser Peak State ------------ > --- POWER ------------ Ion Engine > --- PROPULSION ------- Aluminum Leg Aluminum Leg > --- UTILITY ---------- Terrain Scanner Terrain Scan Processor > --- WEAPON ----------- Small Laser Light Cannon > --- INVENTORY -------- Ion Engine Aluminum Leg Small Storage Unit Small Laser Mining Laser [Rating: 8] Favorites ----------- Power Ion Engine Engine Ion Engine Propulsion Light Treads Treads Light Treads Leg Aluminum Leg Utility Small Storage Unit Device Terrain Scanner Storage Small Storage Unit Processor Terrain Scan Processor Protection Power Shielding Weapon Small Laser Energy Gun Small Laser Ballistic Gun Assault Rifle Ballistic Cannon Light Cannon Build | -11 -10 -10 ------- Run | Yrd Mat Min Slots Evolved . | . . . Power . | . . . Propulsion . | . . . Utility . | . . . Weapon . | . . . Parts Attached 21 | 6 13 2 Power 2 | 1 1 . Engine 2 | 1 1 . Core . | . . . Reactor . | . . . Propulsion 6 | 2 3 1 Treads 2 | 2 . . Leg 4 | . 3 1 Wheel . | . . . Hover . | . . . Flight . | . . . Utility 6 | 1 5 . Device 3 | . 3 . Storage 1 | 1 . . Processor 1 | . 1 . Hackware . | . . . Protection 1 | . 1 . Artifact . | . . . Weapon 7 | 2 4 1 Energy Gun 5 | 1 3 1 Energy Cannon . | . . . Ballistic Gun 1 | 1 . . Ballistic Cannon 1 | . 1 . Launcher . | . . . Special Weapon . | . . . Impact Weapon . | . . . Slashing Weapon . | . . . Piercing Weapon . | . . . Special Melee Weapon . | . . . Unidentified Prototypes . | . . . Parts Lost 8 | . 3 5 Power 1 | . . 1 Propulsion 4 | . 2 2 Utility 1 | . . 1 Weapon 2 | . 1 1 Highest Loss Streak 5 | . 2 5 To Critical Strikes . | . . . Average Slot Usage (%) 96 | . 96 98 Engine 14 | . 14 14 Treads 15 | . 19 . Leg 11 | . 7 26 Device 6 | . 4 14 Storage 10 | . 14 . Processor 3 | . . 14 Protection 5 | . 7 . Energy Gun 14 | . 13 17 Ballistic Gun 7 | . 9 . Ballistic Cannon 6 | . 4 10 Naked Turns . | . . . Heaviest Build 16 | 14 16 10 Greatest Support 40 | 40 40 20 Greatest Overweight (x) 1 | . 1 . Average Overweight (x) . | . . . Largest Inventory Capacity 8 | 8 8 5 Average Capacity 7 | 5 7 5 Most Carried 8 | 2 8 5 Average Carried 5 | 1 6 4 Final Capacity 8 | 8 5 5 Final Carried 5 | 2 5 3 Class Distribution -------------------- 60% | Mutant 39% | Scavenger-Mutant Dominant Class ---------------- Mutant | -10/Materials Scavenger-Mutant | -10/Mines Resources | -11 -10 -10 ----------- Run | Yrd Mat Min Matter Collected 562 | 249 309 4 Remotely . | . . . Salvage Created 478 | . 436 42 Parts 37 | . 34 3 Haulers Intercepted . | . . . Recyclers Shooed . | . . . Parts Field Recycled . | . . . Retrieved Matter . | . . . Parts Self-Destructed . | . . . Prevented . | . . . Kills | -11 -10 -10 ------- Run | Yrd Mat Min Combat Hostiles Destroyed 16 | . 14 2 Guns 12 | . 10 2 Cannons 4 | . 4 . Classes Destroyed 4 | . 4 . Builder 1 | . 1 . Watcher 1 | . 1 . Swarmer 7 | . 6 1 Grunt 9 | . 8 1 Best Kill Streak 5 | . 5 1 Combat Bots Only 5 | . 5 1 Max Kills in Single Turn 1 | . 1 1 Gunslinging . | . . . Exploded . | . . . Melee . | . . . Uniques/NPCs Destroyed . | . . . Combat | -11 -10 -10 -------- Run | Yrd Mat Min Hostile Shots Fired 161 | . 115 46 Missed 40 | . 32 8 Damage Taken 1355 | . 855 500 Core 261 | . 177 84 Absorbed by Shields . | . . . Redirected to Shielding 6 | . 6 . Core Remaining (%) 100 | 100 . . Volleys Fired 63 | 1 44 18 Largest 2 | 2 2 2 Hottest 85 | 60 85 80 Shots Fired 124 | 2 87 35 Gun 97 | 2 68 27 Cannon 27 | . 19 8 Launcher . | . . . Special . | . . . Kinetic 53 | 1 44 8 Thermal 54 | . 27 27 Explosive . | . . . Electromagnetic 17 | 1 16 . Robot Hit Streak 10 | 2 10 7 Robot Miss Streak 5 | . 5 4 Penetration Max . | . . . Secondary Targets 4 | . 4 . Max Gunslinging Chain 1 | . 1 . Shots Hit Robots 77 | 2 56 19 Core Hits 27 | 1 22 4 Critical Kills . | . . . Critical Parts Destroyed . | . . . Critical Strikes 4 | . 4 . Burn 1 | . 1 . Blast 1 | . 1 . Corrupt 2 | . 2 . Melee Attacks . | . . . Impact . | . . . Slashing . | . . . Piercing . | . . . Sneak Attacks . | . . . Combat Hostiles . | . . . Follow-up Attacks . | . . . Damage Inflicted 1083 | 27 786 270 Guns 720 | 27 535 158 Cannons 363 | . 251 112 Explosions . | . . . Melee . | . . . Ramming . | . . . Kinetic 565 | 14 439 112 Thermal 338 | . 180 158 Explosive . | . . . Electromagnetic 180 | 13 167 . Impact . | . . . Slashing . | . . . Piercing . | . . . Highest Corruption . | . . . Average Corruption . | . . . Corruption Purged . | . . . Corruption Blocked . | . . . Overload Shots . | . . . Overflow Damage . | . . . Projectiles . | . . . Explosions . | . . . Melee . | . . . Knockbacks 4 | . 3 1 Impact . | . . . Kinetic 4 | . 3 1 Secondary . | . . . Self-Inflicted Damage . | . . . Shots . | . . . Rammed . | . . . Targets Rammed . | . . . Kicked . | . . . Crushed . | . . . Highest Temperature 280 | . 162 280 Average Temperature 88 | . 59 123 Received Heat Transfer 630 | . 378 252 Siege Activations . | . . . Robots Corrupted . | . . . Combat Hostiles . | . . . Parts Fried . | . . . Impact Corruptions . | . . . Robots Melted . | . . . Combat Hostiles . | . . . Parts Melted . | . . . Heat Transferred 931 | . 581 350 Parts Sabotaged . | . . . Parts Stolen . | . . . Parts Stripped . | . . . Power Chain Reactions . | . . . Alert | -11 -10 -10 ------- Run | Yrd Mat Min Peak Influence 253 | . 253 119 Initial 69 | . . 69 Average 112 | . 138 74 Maximum Alert Level 1 | . 1 . Low Security (%) 76 | 100 65 100 Level 1 23 | . 34 . Level 2 . | . . . Level 3 . | . . . Level 4 . | . . . Level 5 . | . . . High Security . | . . . Max Security . | . . . Squads Dispatched 3 | . 3 . Investigation 3 | . 3 . Extermination . | . . . Reinforcement . | . . . Assault . | . . . Garrison . | . . . Intercept . | . . . Searches Triggered . | . . . Construction Impeded . | . . . Haulers Reinforced . | . . . Active Scanning Responses . | . . . Cargo Convoy Interrupts . | . . . Stealth | -11 -10 -10 --------- Run | Yrd Mat Min Distress Signals 1 | . 1 . Communications Jammed . | . . . Distress Signals . | . . . Times Spotted 28 | . 19 9 Peak Tracking Total 6 | . 5 6 Tactical Retreats 2 | . . 2 Traps | -11 -10 -10 ------- Run | Yrd Mat Min Traps Triggered 1 | . 1 . Indirectly . | . . . Trap Hack Attempts . | . . . Triggered . | . . . Disarmed . | . . . Reprogrammed . | . . . Reused . | . . . Traps Extracted . | . . . Installed . | . . . Triggered . | . . . Machines | -11 -10 -10 ---------- Run | Yrd Mat Min Machines Disabled 1 | . 1 . Max in Single Turn 1 | . 1 . Machines Repaired . | . . . Machines Dismantled . | . . . Machines Sabotaged . | . . . Overloaded Fab Kills . | . . . Hacking | -11 -10 -10 --------- Run | Yrd Mat Min Machines Accessed 4 | . 4 . Terminals 3 | . 3 . Fabricators . | . . . Repair Stations . | . . . Recycling Units 1 | . 1 . Scanalyzers . | . . . Garrison Access . | . . . Total Hacks 13 | . 13 . Successful 6 | . 6 . Failed 7 | . 7 . Catastrophic 1 | . 1 . Database Lockouts . | . . . Manual 7 | . 7 . Terminals 12 | . 12 . Fabricators . | . . . Repair Stations . | . . . Recycling Units 1 | . 1 . Scanalyzers . | . . . Garrison Access . | . . . Terminal Hacks 2 | . 2 . Level Access Points 1 | . 1 . Alert Level 1 | . 1 . Fabricator Hacks . | . . . Repair Station Hacks . | . . . Recycling Unit Hacks . | . . . Scanalyzer . | . . . Garrison Access Hacks . | . . . Unauthorized Hacks 4 | . 4 . Terminals 3 | . 3 . Botnet 3 | . 3 . Fabricators . | . . . Repair Stations . | . . . Recycling Units 1 | . 1 . Tunnel 1 | . 1 . Scanalyzers . | . . . Garrison Access . | . . . Data Cores Recovered . | . . . Used . | . . . Hacking Detections 3 | . 3 . Full Trace Events 2 | . 2 . Feedback Events . | . . . Feedback Blocked . | . . . Robot Schematics Acquired . | . . . Robots Built . | . . . Authchips . | . . . Time . | . . . Total Robot Build Rating . | . . . Part Schematics Acquired . | . . . Parts Built . | . . . Authchips . | . . . Time . | . . . Total Part Build Rating . | . . . Parts Repaired . | . . . Time . | . . . Parts Recycled . | . . . Recycled Matter . | . . . Retrieved Matter . | . . . Retrieved Components . | . . . Parts Scanalyzed . | . . . Part Schematics Acquired . | . . . Parts Damaged . | . . . Bothacking | -11 -10 -10 ------------ Run | Yrd Mat Min Used RIF Installer . | . . . Robots Hacked . | . . . Non-combat . | . . . Combat . | . . . Robot Hacks Applied . | . . . Relay Couplers Released . | . . . Fabnet Peak Effective % . | . . . Robots Rewired . | . . . Allies Hacked . | . . . Hacks Repelled . | . . . Allies | -11 -10 -10 -------- Run | Yrd Mat Min Total Allies . | . . . Largest Group . | . . . Highest-Rated Group . | . . . Highest-Rated Ally . | . . . Total Orders . | . . . Ally Attacks . | . . . Total Damage . | . . . Kills . | . . . Allies Corrupted . | . . . Allies Melted . | . . . Intel | -11 -10 -10 ------- Run | Yrd Mat Min Robot Analysis Total . | . . . Derelict Logs Recovered 1 | . . 1 Drone Launches . | . . . Drone Recoveries . | . . . Exploration | -11 -10 -10 ------------- Run | Yrd Mat Min Turns Passed 844 | 76 591 177 Spaces Moved 429 | 43 284 102 Core 5 | 5 . . Treads 228 | 38 190 . Legs 196 | . 94 102 Wheels . | . . . Hover . | . . . Flight . | . . . Fastest Speed 50 | 50 120 120 Average Speed 141 | 147 148 120 Slowest Speed 190 | 160 190 120 Overloaded Moves . | . . . Propulsion Burnouts . | . . . Robots Hopped . | . . . Cave-ins Triggered . | . . . Exploration Rate (%) 28 | 4 43 38 Regions Visited 2 Branch Regions 1 Pre-discovered Areas 1 | . 1 . Known Exits Taken . | . . . Unknown Exits Taken 2 | 1 1 . Scrap Searched . | . . . Spaces Dug . | . . . Terrain Destroyed . | . . . Melee . | . . . Projectile . | . . . AOE . | . . . Terrain Rammed . | . . . Walls Destroyed . | . . . Machines Disabled . | . . . Actions | -11 -10 -10 --------- Run | Yrd Mat Min Total 543 | 51 370 122 Wait 4 | . 4 . Move 427 | 42 283 102 Hop . | . . . Pick Up 15 | 2 13 . Fast Attach 10 | 6 4 . Attach 3 | . 1 2 Detach 1 | . 1 . Swap 8 | . 8 . Drop 12 | . 12 . Fire 63 | 1 44 18 Melee . | . . . Ram . | . . . Kick . | . . . Crush . | . . . Escape Stasis . | . . . Rewire . | . . . Trap . | . . . Miscellaneous . | . . . Route ------- -11/Scrapyard -10/Materials (discovered 4 exits: *Mat x3 / [*Min]) -10/Mines History --------- Turn | Location | Event 3 | -11/Scrapyard | Discovered new exit (range 16) 77 | -11/Scrapyard | Entered Materials 292 | -10/Materials | Discovered new exit (range 16) 322 | -10/Materials | Build established: Mutant 328 | -10/Materials | Identified exit to Materials 445 | -10/Materials | Core integrity fell below 50% 585 | -10/Materials | Discovered new exit (range 8) 668 | -10/Materials | Entered Mines 680 | -10/Mines | Learned Materials emergency access door positions 800 | -10/Mines | Core integrity fell below 20% 814 | -10/Mines | Build established: Scavenger-Mutant 845 | -10/Mines | Destroyed by G-47 Trooper with Particle Gun Last Messages --------------- 00659_ R-06 Scavenger collects Lgt. Assault Rifle. 00662_ Acquired 17 matter. 00663_ K-01 Serf collects debris. 00663_ R-06 Scavenger collects Flight Unit. 00664_ Dropped Aluminum Leg. 00665_ K-01 Serf collects debris. LOCATION=UNKNOWN GOAL=ESCAPE 00680_ Acquired derelict log, extracted data. Data stored: Materials emergency access points. 00746_ Acquired 3 matter. 00754_ K-01 Serf collects debris. 00767_ Acquired 1 matter. 00779_ G-47 Trooper knocked back. 00791_ Lgt. Cannon destroyed. 00806_ G-47 Trooper destroyed. 00819_ Aluminum Leg destroyed. 00840_ S-10 Pest destroyed. 00842_ Ion Engine destroyed. 00844_ Terrain Scanner destroyed. Map ----- +----------------------------------------------------+ | ?????????????????????????????????????????????????? | | #????????????????????????????????????????????????? | | ?????#???????????????????????????????????????????? | | ?????????????????????????????????????????????????? | | ???#?????????????????????????????????????????????? | | ????#????????????????????????????????????????????? | | ????#????????????????????????????????????????????? | | ? ?????????????????????????????????????????????? | | #???????????????????????????????????????????????? | | #?#?##??????????????????????????????????????????? | | ##??????????????????????????????????????????????? | | ##???#???????????????????????????????????????????? | | ??##?? ????????????? ????????????????????????????? | | ?##?? ????????????## ????????????????????????????? | | ##???????????????## ???##??????#???????????????? | | # ??????????????## ????#? ???????????????????? | | ?? ???????????## ? ??#????#????????????????? | | ??????????????## ? ???? ???????????????????? | | #?? ?????????## ??? ?? ??????????????????? | | #? ?????????# ????#??#????? ????????????? | | ?#???#???????# ?????##????#??? ??????????? | | #? ???????????# ##????##?#????? ??????????? | | ###?##?????????# ##???#??#????????????????? | | ##?#????????## ##?#???#??#?? ??????????? | | ##??#????### """ ##????#??#?????????????? | | ##??????### """ @###?###?? #????????????? | | #??#?# """ggs##?#? ?? #?????????? | | #???#?#?# s #### ? ??????????? | | ##??#????## ## #?#????????#???????? | | ##?????#???## ?#### g ######?## ? ??? ????????? | | ###???????#?????????# ###??#???# ?? ?#??????? | | #?#??#???##???##?#?## ###?#?#?##? ????? #??????? | | ??##?#?#?###??#?#### #?##?#####?? ?? ???#??????? | | #########?#####?## ###?###[% ???? ???#??????? | | ### ####?##%#??##?? ????#??????? | | ########??# ## ####### ###?#???? ? ???????? | | ########### ## #?#??#? ? ?????????? | | #??###???## # ##???#? ??#????????? | | #### #### ########?????#?## ???????? | | #?# ## ####??#?##?#?#?#??#??????? | | ### #??####???#?##???#??????? | | ! ### ## #??##?#??????#? ???????? | | #?## #### #????#???#?##?????????? | | #### #??# ####????#????????????? | | [ #### #??####?????????????? | | #[ ##??# #?????#?????????????? | | ###### ###??# ######?#?????????????? | | ##???## ###??## ### ##?#??????????????????? | | ??????## ##?#??### ###?###?#?###???????????????? | | #??#???####???????####?#?????????????????????????? | +----------------------------------------------------+ Best States ------------- Heat Dissipation 35 Energy Generation 10 Energy Capacity 250 Matter Stores 300 Matter Capacity 300 Sight Range 16 Terrain Scan Range 14 Terrain Scan Density 85 Power Shielding 33 Evasion (%) 55 Recoil Reduction 2 Item Schematics ----------------- None Robot Schematics ------------------ None Fabricated ------------ Nothing Alien Tech Used ----------------- None Achievements -------------- None Challenges ------------ None Game ------ Seed AntimatterWeaponAutocannon Manual? 0 Play Time 00:05:52 Cumulative 87.3 hours Start 2024.07.22 @ 17:29:59 End 2024.07.22 @ 17:34:53 Sessions 1 Manual Loads 0 Difficulty Rogue Special Mode None Game No. 98 Rogue 98 Adventurer 0 Explorer 0 Win Type - Total 1 Types 1/0/0/0/0/0/0/0/0 Lore% 54 Gallery% 61 Achievement% 42 Wizard Run 0 Options --------- Layout 0 ASCII 0 Keyboard 1 Movement Numpad Keybinds 0 Fullscreen 2 Font 18/SmallcapsGlow Map View 76x50 Zoom Use 0% Tactical HUD 1 Map Filters NONE Filters NONE Steam 1 RUN: 1983041e-bd36-4d4a-ae2b-3747256da337